fUSD/lending_fUSD_20250623
["ID","MTS","AMOUNT","RATE_DAILY","PERIOD"]
[367206229,1750701047659,-1056.21,0.00022985,2]
[367206230,1750701047668,-359.85708488,0.00022985,2]
[367206231,1750701047678,-852.42,0.00022985,2]
[367206232,1750701047689,-490.0,0.00022985,2]
[367206233,1750701047698,-867.27,0.00022985,2]
[367206234,1750701047707,-490.0,0.00022985,2]
[367206235,1750701047716,-490.0,0.00022985,2]
[367206236,1750701047726,-490.0,0.00022985,2]
[367206237,1750701047735,-490.0,0.00022985,2]
[367206238,1750701047746,-490.0,0.00022985,2]
[367206239,1750701047756,-490.0,0.00022985,2]
[367206241,1750701047766,-490.0,0.00022985,2]
[367206243,1750701047775,-490.0,0.00022985,2]
[367206245,1750701047785,-490.0,0.00022985,2]
[367206247,1750701047795,-815.87,0.00022985,2]
[367206249,1750701047805,-490.0,0.00022985,2]
[367206251,1750701047816,-657.04,0.00022985,2]
[367206254,1750701047826,-2097.7,0.00022985,2]
[367206255,1750701047836,-660.02,0.00022985,2]
[367206257,1750701047846,-490.0,0.00022985,2]
[367206259,1750701047856,-750.19,0.00022985,2]
[367206261,1750701047865,-490.0,0.00022985,2]
[367206263,1750701047874,-490.0,0.00022985,2]
[367206265,1750701047884,-323.56994449,0.00022985,2]
[367206267,1750701047893,-490.0,0.00022985,2]
[367206270,1750701047903,-1052.98,0.00022985,2]
[367206272,1750701047915,-490.0,0.00022985,2]
[367206274,1750701047925,-532.83,0.00022985,2]
[367206276,1750701047935,-490.0,0.00022985,2]
[367206278,1750701047946,-490.0,0.00022985,2]
[367206280,1750701047954,-830.07,0.00022985,2]
[367206282,1750701047963,-692.86,0.00022985,2]
[367206284,1750701047973,-490.0,0.00022985,2]
[367206286,1750701047984,-1069.57,0.00022985,2]
[367206288,1750701047995,-490.0,0.00022985,2]
[367206290,1750701048005,-584.11190326,0.00022985,2]
[367206292,1750701048014,-490.0,0.00022985,2]
[367206294,1750701048024,-490.0,0.00022985,2]
[367206296,1750701048033,-490.0,0.00022985,2]
[367206297,1750701048044,-490.0,0.00022985,2]
[367206300,1750701048053,-490.0,0.00022985,2]
[367206302,1750701048064,-490.0,0.00022985,2]
[367206303,1750701048074,-490.0,0.00022985,2]
[367206305,1750701048083,-490.0,0.00022985,2]
[367206307,1750701048093,-490.0,0.00022985,2]
[367206309,1750701048103,-1019.93,0.00022985,2]
[367206311,1750701048113,-612.32,0.00022985,2]
[367206313,1750701048122,-490.0,0.00022985,2]
[367206316,1750701048133,-490.0,0.00022985,2]
[367206318,1750701048144,-490.0,0.00022985,2]
[367206319,1750701048154,-490.0,0.00022985,2]
[367206321,1750701048164,-490.0,0.00022985,2]
[367206323,1750701048174,-490.0,0.00022985,2]
[367206326,1750701048186,-665.09,0.00022985,2]
[367206328,1750701048195,-490.0,0.00022985,2]
[367206330,1750701048204,-490.0,0.00022985,2]
[367206332,1750701048215,-490.0,0.00022985,2]
[367206334,1750701048224,-490.0,0.00022985,2]
[367206335,1750701048234,-718.9,0.00022985,2]
[367206338,1750701048246,-490.0,0.00022985,2]
[367206340,1750701048256,-490.0,0.00022985,2]
[367206341,1750701048265,-1238.55,0.00022985,2]
[367206343,1750701048275,-490.0,0.00022985,2]
[367206346,1750701048285,-580.71,0.00022985,2]
[367206348,1750701048295,-526.04,0.00022985,2]
[367206349,1750701048304,-2177.2,0.00022985,2]
[367206351,1750701048313,-490.0,0.00022985,2]
[367206353,1750701048322,-490.0,0.00022985,2]
[367206355,1750701048332,-490.0,0.00022985,2]
[367206357,1750701048342,-490.0,0.00022985,2]
[367206359,1750701048351,-689.91,0.00022985,2]
[367206361,1750701048361,-2305.3,0.00022985,2]
[367206363,1750701048371,-490.0,0.00022985,2]
[367206365,1750701048380,-490.0,0.00022985,2]
[367206367,1750701048390,-500.0,0.00022985,2]
[367206369,1750701048400,-490.0,0.00022985,2]
[367206371,1750701048410,-490.0,0.00022985,2]
[367206373,1750701048420,-490.0,0.00022985,2]
[367206375,1750701048430,-490.0,0.00022986,2]
[367206377,1750701048441,-490.0,0.00022986,2]
[367206379,1750701048450,-508.53,0.00022986,2]
[367206381,1750701048462,-355.50919207,0.00022986,2]
[367206383,1750701048473,-545.01610335,0.00022986,2]
[367206385,1750701048484,-490.0,0.00022986,2]
[367206387,1750701048493,-500.0,0.00022986,2]
[367206389,1750701048503,-556.39714858,0.00022986,2]
[367206391,1750701048512,-833.24,0.00022986,2]
[367206393,1750701048522,-490.0,0.00022986,2]
[367206395,1750701048532,-1050.69,0.00022986,2]
[367206397,1750701048541,-297.13431526,0.00022986,2]
[367206399,1750701048551,-490.0,0.00022986,2]
[367206401,1750701048561,-490.0,0.00022986,2]
[367206403,1750701048571,-490.0,0.00022986,2]
[367206405,1750701048581,-490.0,0.00022986,2]
[367206407,1750701048590,-490.0,0.00022986,2]
[367206409,1750701048600,-490.0,0.00022986,2]
[367206411,1750701048612,-490.0,0.00022986,2]
[367206413,1750701048621,-490.0,0.00022986,2]
[367206415,1750701048630,-490.0,0.00022986,2]
[367206417,1750701048639,-490.0,0.00022986,2]
[367206419,1750701048649,-490.0,0.00022986,2]
[367206421,1750701048658,-490.0,0.00022986,2]
[367206423,1750701048668,-1021.69,0.00022986,2]
[367206425,1750701048677,-490.0,0.00022986,2]
[367206427,1750701048688,-490.0,0.00022986,2]
[367206429,1750701048698,-490.0,0.00022986,2]
[367206431,1750701048708,-490.0,0.00022986,2]
[367206433,1750701048718,-490.0,0.00022986,2]
[367206435,1750701048727,-813.01,0.00022986,2]
[367206437,1750701048737,-490.0,0.00022986,2]
[367206439,1750701048746,-490.0,0.00022986,2]
[367206441,1750701048757,-491.567612,0.00022986,2]
[367206443,1750701048766,-490.0,0.00022986,2]
[367206445,1750701048776,-490.0,0.00022986,2]
[367206447,1750701048786,-490.87528709,0.00022986,2]
[367206449,1750701048795,-490.0,0.00022986,2]
[367206451,1750701048805,-490.0,0.00022986,2]
[367206453,1750701048814,-707.74,0.00022986,2]
[367206455,1750701048824,-490.0,0.00022986,2]
[367206457,1750701048832,-574.17,0.00022986,2]
[367206459,1750701048842,-490.0,0.00022986,2]
[367206461,1750701048851,-403.52811687,0.00022986,2]
[367206463,1750701048861,-774.69,0.00022986,2]
[367206465,1750701048870,-490.0,0.00022986,2]
[367206467,1750701048880,-490.0,0.00022986,2]
[367206469,1750701048890,-490.0,0.00022986,2]
[367206471,1750701048900,-581.56,0.00022986,2]
[367206473,1750701048913,-490.0,0.00022986,2]
[367206475,1750701048921,-727.01,0.00022986,2]
[367206477,1750701048931,-490.0,0.00022986,2]
[367206479,1750701048940,-490.0,0.00022986,2]
[367206481,1750701048951,-490.0,0.00022986,2]
[367206483,1750701048961,-563.74,0.00022986,2]
[367206485,1750701048971,-490.0,0.00022986,2]
[367206487,1750701048982,-593.05039061,0.00022986,2]
[367206489,1750701048992,-490.0,0.00022986,2]
[367206491,1750701049001,-490.0,0.00022986,2]
[367206493,1750701049010,-1231.41,0.00022986,2]
[367206495,1750701049019,-490.0,0.00022986,2]
[367206497,1750701049029,-490.0,0.00022986,2]
[367206499,1750701049038,-490.0,0.00022986,2]
[367206501,1750701049047,-490.0,0.00022986,2]
[367206503,1750701049056,-490.0,0.00022986,2]
[367206505,1750701049066,-608.74117617,0.00022986,2]
[367206506,1750701049075,-789.56,0.00022986,2]
[367206508,1750701049084,-490.0,0.00022986,2]
[367206510,1750701049093,-683.79,0.00022986,2]
[367206512,1750701049103,-490.0,0.00022986,2]
[367206514,1750701049112,-490.0,0.00022986,2]
[367206516,1750701049122,-490.0,0.00022986,2]
[367206518,1750701049131,-491.17733876,0.00022986,2]
[367206521,1750701049142,-987.29,0.00022986,2]
[367206522,1750701049151,-493.0412646,0.00022986,2]
[367206524,1750701049160,-490.0,0.00022986,2]
[367206526,1750701049170,-490.0,0.00022986,2]
[367206528,1750701049179,-547.6173573,0.00022986,2]
[367206530,1750701049189,-860.07,0.00022986,2]
[367206532,1750701049199,-648.22,0.00022986,2]
[367206534,1750701049208,-490.0,0.00022986,2]
[367206536,1750701049218,-153.649924,0.00022986,2]
[367206538,1750701049228,-747.1,0.00022986,2]
[367206540,1750701049238,-485.0817314,0.00022986,2]
[367206542,1750701049248,-492.08503644,0.00022986,2]
[367206544,1750701049258,-490.0,0.00022986,2]
[367206547,1750701049269,-490.0,0.00022986,2]
[367206549,1750701049279,-680.38,0.00022986,2]
[367206551,1750701049289,-490.0,0.00022986,2]
[367206553,1750701049298,-396.922444,0.00022986,2]
[367206555,1750701049307,-189.82004778,0.00022986,2]
[367206557,1750701049317,-490.0,0.00022986,2]
[367206559,1750701049326,-165.909978,0.00022986,2]
[367206561,1750701049335,-490.0,0.00022986,2]
[367206562,1750701049345,-150.432819,0.00022986,2]
[367206564,1750701049355,-628.23,0.00022986,2]
[367206566,1750701049364,-631.36,0.00022986,2]
[367206568,1750701049373,-490.0,0.00022986,2]
[367206570,1750701049384,-490.0,0.00022986,2]
[367206572,1750701049394,-327.2059935,0.00022986,2]
[367206574,1750701049404,-490.0,0.00022986,2]
[367206576,1750701049414,-1065.04,0.00022986,2]
[367206579,1750701049425,-490.0,0.00022986,2]
[367206580,1750701049436,-224.27325093,0.00022986,2]
[367206581,1750701049446,-507.08938514,0.00022986,2]
[367206582,1750701049456,-490.0,0.00022986,2]
[367206583,1750701049466,-27.00853522,0.00022986,2]
[367206591,1750701050215,-559.39146478,0.00022986,2]
[367206592,1750701050224,-490.0,0.00022986,2]
[367206593,1750701050234,-490.0,0.00022986,2]
[367206594,1750701050244,-733.84,0.00022986,2]
[367206595,1750701050253,-1628.26,0.00022986,2]
[367206596,1750701050262,-490.0,0.00022986,2]
[367206597,1750701050272,-210.0,0.00022986,2]
[367206598,1750701050281,-626.75605606,0.00022986,2]
[367206599,1750701050290,-492.69904873,0.00022986,2]
[367206600,1750701050299,-490.0,0.00022986,2]
[367206601,1750701050309,-490.0,0.00022986,2]
[367206602,1750701050318,-490.0,0.00022986,2]
[367206603,1750701050327,-490.0,0.00022986,2]
[367206604,1750701050337,-490.0,0.00022986,2]
[367206605,1750701050346,-490.0,0.00022986,2]
[367206606,1750701050355,-491.57142066,0.00022986,2]
[367206607,1750701050364,-490.0,0.00022986,2]
[367206608,1750701050373,-490.0,0.00022986,2]
[367206609,1750701050383,-503.31,0.00022986,2]
[367206610,1750701050392,-490.0,0.00022986,2]
[367206611,1750701050402,-490.0,0.00022986,2]
[367206612,1750701050411,-490.0,0.00022986,2]
[367206613,1750701050420,-490.0,0.00022986,2]
[367206614,1750701050429,-490.0,0.00022986,2]
[367206615,1750701050440,-490.0,0.00022986,2]
[367206616,1750701050449,-490.0,0.00022986,2]
[367206617,1750701050459,-490.0,0.00022986,2]
[367206618,1750701050468,-490.0,0.00022986,2]
[367206619,1750701050477,-490.0,0.00022986,2]
[367206620,1750701050486,-490.0,0.00022986,2]
[367206621,1750701050495,-490.0,0.00022986,2]
[367206622,1750701050504,-490.0,0.00022986,2]
[367206623,1750701050513,-1095.85,0.00022986,2]
[367206624,1750701050522,-1006.72,0.00022986,2]
[367206625,1750701050531,-490.0,0.00022986,2]
[367206626,1750701050542,-490.0,0.00022986,2]
[367206627,1750701050551,-872.03,0.00022986,2]
[367206628,1750701050560,-490.0,0.00022986,2]
[367206629,1750701050570,-490.0,0.00022986,2]
[367206630,1750701050579,-492.93768147,0.00022986,2]
[367206631,1750701050588,-490.0,0.00022986,2]
[367206632,1750701050598,-690.06,0.00022986,2]
[367206633,1750701050607,-490.0,0.00022986,2]
[367206634,1750701050616,-490.0,0.00022986,2]
[367206635,1750701050626,-534.82097583,0.00022986,2]
[367206636,1750701050634,-490.0,0.00022986,2]
[367206637,1750701050644,-490.0,0.00022986,2]
[367206638,1750701050653,-490.0,0.00022986,2]
[367206639,1750701050663,-490.0,0.00022986,2]
[367206640,1750701050672,-490.25873709,0.00022986,2]
[367206641,1750701050681,-490.0,0.00022986,2]
[367206642,1750701050691,-490.0,0.00022986,2]
[367206643,1750701050700,-490.0,0.00022986,2]
[367206644,1750701050710,-490.0,0.00022986,2]
[367206645,1750701050720,-174.01238902,0.00022986,2]
[367206646,1750701050733,-315.98761098,0.00022986,2]
[367206647,1750701050743,-196.5123912,0.00022986,2]
[367206648,1750701050822,-293.4876088,0.00022986,2]
[367206649,1750701050832,-888.5,0.00022986,2]
[367206650,1750701050841,-490.0,0.00022986,2]
[367206651,1750701050851,-490.0,0.00022986,2]
[367206652,1750701050860,-490.0,0.00022986,2]
[367206653,1750701050869,-1036.57,0.00022986,2]
[367206654,1750701050878,-414.03547125,0.00022986,2]
[367206662,1750701498343,229.21,0.00013699,2]
[367206677,1750701802199,-202.0,0.000192,5]
[367206678,1750701807461,-300.0,0.000192,5]
[367206679,1750701825139,-151.0,0.000192,5]
[367206681,1750701838297,-371.68869516,0.000192,5]
[367206683,1750701853618,-226.76869516,0.000192,5]
[367206685,1750701862584,4312.0,0.00019,5]
[367206690,1750701985539,5563.0,0.000187,5]
[367206710,1750702110436,393.0,0.000183,5]
[367206845,1750702231615,-229.21,0.00020187,2]
[367206846,1750702231625,-150.0,0.0002091,2]
[367206847,1750702231635,-150.0,0.0002091,2]
[367206848,1750702231645,-202.0,0.00020967,2]
[367206849,1750702231657,-202.0,0.00020967,2]
[367206850,1750702231666,-201.0,0.00020967,2]
[367206851,1750702231676,-1000.0,0.0002137,2]
[367206852,1750702231686,-200.0,0.00021379,7]
[367206853,1750702231696,-166.52,0.0002144,2]
[367206854,1750702231705,-1160.23,0.00021502,2]
[367206855,1750702231715,-1182.2,0.00021512,2]
[367206856,1750702231725,-312.68,0.00021523,2]
[367206857,1750702231734,-167.01,0.00021707,2]
[367206858,1750702231744,-600.0,0.00021725,2]
[367206859,1750702231753,-300.0,0.00021726,2]
[367206860,1750702231763,-5498.78,0.00021727,2]
[367206861,1750702231773,-167.01,0.00021729,2]
[367206862,1750702231782,-167.01,0.0002175,2]
[367206863,1750702231792,-167.01,0.00021772,2]
[367206864,1750702231802,-167.01,0.00021794,2]
[367206865,1750702231811,-167.01,0.00021815,2]
[367206866,1750702231820,-250.0,0.00021926,2]
[367206867,1750702231831,-166.11,0.00021926,3]
[367206868,1750702231841,-170.0,0.00021947,2]
[367206869,1750702231851,-3543.35,0.00021957,2]
[367206870,1750702231860,-157.46,0.00021971,2]
[367206871,1750702231870,-7142.856,0.0002198,2]
[367206872,1750702231880,-207.4,0.0002198,2]
[367206873,1750702231890,-163.44,0.00021992,2]
[367206874,1750702231903,-713.88231869,0.00022021,2]
[367206875,1750702231913,-7407.141672,0.00022035,2]
[367206876,1750702231923,-1225.67640308,0.0002209,2]
[367206877,1750702231932,-167.62,0.0002213,2]
[367206878,1750702231942,-1000.0,0.00022136,5]
[367206879,1750702231952,-713.88231869,0.00022233,2]
[367206880,1750702231962,-202.0,0.00022268,3]
[367206881,1750702231972,-150.0,0.00022361,2]
[367206882,1750702231982,-150.0,0.00022424,2]
[367206883,1750702231992,-151.0,0.00022469,2]
[367206884,1750702232002,-5574.01736441,0.00022482,2]
[367206885,1750702232012,-5888.0,0.00022505,2]
[367206886,1750702232022,-150.0,0.00022533,2]
[367206887,1750702232032,-1617.63281615,0.00022585,2]
[367206888,1750702232043,-150.0,0.00022613,2]
[367206889,1750702232054,-713.88231871,0.00022651,2]
[367206890,1750702232065,-1617.62,0.00022684,2]
[367206891,1750702232074,-250.0,0.00022695,2]
[367206892,1750702232084,-1000.0,0.00022695,5]
[367206893,1750702232093,-250.0,0.00022695,2]
[367206894,1750702232103,-1487.0,0.000227,2]
[367206895,1750702232112,-5888.0,0.00022707,2]
[367206896,1750702232121,-286.08953639,0.00022717,2]
[367206897,1750702232131,-7574.94125931,0.00022719,2]
[367206898,1750702232141,-132561.47203733,0.00022719,2]
[367206899,1750702232153,-286.08953639,0.0002272,2]
[367206900,1750702232163,-95547.40675689,0.00022721,2]
[367206901,1750702232173,-132561.47203733,0.00022721,2]
[367206902,1750702232182,-2004.7462476,0.00022723,2]
[367206903,1750702232192,-150.0,0.00022735,2]
[367206904,1750702232202,-486.48046506,0.00022757,2]
[367206905,1750702232212,-17274.6252061,0.00022757,2]
[367206906,1750702232222,-378.56128,0.0002276,2]
[367206907,1750702232232,-17274.6252061,0.00022761,2]
[367206908,1750702232242,-2004.7462476,0.00022763,2]
[367206909,1750702232252,-132561.47203733,0.00022769,2]
[367206910,1750702232262,-2004.7462476,0.00022771,2]
[367206911,1750702232272,-286.08953639,0.00022773,2]
[367206912,1750702232288,-150.0,0.00022779,2]
[367206913,1750702232297,-171.19502806,0.00022784,2]
[367206914,1750702232307,-1666.03901636,0.00022784,2]
[367206915,1750702232316,-2500.0,0.00022785,2]
[367206916,1750702232326,-8764.33303161,0.00022785,2]
[367206917,1750702232336,-7574.94125931,0.00022796,2]
[367206918,1750702232346,-486.48046506,0.00022798,2]
[367206919,1750702232355,-308.67759018,0.00022799,2]
[367206920,1750702232365,-95547.40675689,0.00022813,2]
[367206921,1750702232374,-95547.40675689,0.00022815,2]
[367206922,1750702232384,-17274.6252061,0.00022817,2]
[367206923,1750702232393,-1666.03901624,0.00022818,2]
[367206924,1750702232406,-2004.7462476,0.00022823,2]
[367206925,1750702232415,-94362.880646,0.00022826,2]
[367206926,1750702232438,-600.0,0.00022826,2]
[367206927,1750702232450,-584.52611089,0.00022826,2]
[367206928,1750702232460,-4607.88149675,0.00022831,2]
[367206929,1750702232484,-2967.05976256,0.00022831,2]
[367206930,1750702232494,-3803.56323744,0.00022836,2]
[367206931,1750702233006,-45616.6303475,0.00022836,2]
[367206932,1750702233407,-1911.99533054,0.00022836,2]
[367206933,1750702233454,-829.05897311,0.00022836,2]
[367206934,1750702233466,-297.28628325,0.00022836,2]
[367206935,1750702233478,-469.05542489,0.00022836,2]
[367207091,1750702237627,-1386.14110658,0.00022836,2]
[367207093,1750702237640,-403.20229772,0.00022836,2]
[367207103,1750702237733,-77844.5390363,0.00022836,2]
[367207105,1750702237743,-308.67759018,0.00022847,2]
[367207107,1750702237753,-1666.03901624,0.00022852,2]
[367207109,1750702237763,-7574.94125931,0.00022856,2]
[367207111,1750702237773,-117105.80309798,0.00022856,2]
[367207114,1750702237794,-5564.0,0.00022856,2]
[367207117,1750702237806,-9891.66893935,0.00022856,2]
[367207119,1750702237816,-358.57106065,0.00022859,2]
[367207316,1750702239857,-1259.04893935,0.00022859,2]
[367207318,1750702239866,-137.16162242,0.00022866,2]
[367207320,1750702239878,-171.51596776,0.00022866,2]
[367207322,1750702239888,-869.65217064,0.00022867,2]
[367207324,1750702239899,-1103.1972364,0.00022867,2]
[367207327,1750702239914,-31.89684056,0.00022867,2]
[367207328,1750702239924,-5391.4608209,0.00022867,2]
[367207652,1750702242834,-2183.48043841,0.00022867,2]
[367207654,1750702242844,-7495.49473177,0.00022867,2]
[367207923,1750702245602,-3856.3578734,0.00022867,2]
[367207950,1750702245864,-3506.39466757,0.00022867,2]
[367212346,1750702513016,214.1,0.00013699,2]
[367212348,1750702581530,250.0,0.00015,2]
[367212349,1750702583346,300.0,0.00017,2]
[367212350,1750702606444,1489.9659949,0.000136,2]
[367212356,1750703021283,187.0,0.00016712,2]
[367212358,1750703128660,8779.06476521,0.00016435,2]
[367212365,1750703230370,43371.45751401,0.00016435,2]
[367212366,1750703230400,22769.04726399,0.00016435,2]
[367212931,1750703437899,-749.45739032,0.000194,2]
[367212933,1750703437909,-202.0,0.0001957,2]
[367212935,1750703437918,-1202.04774028,0.0002,2]
[367212937,1750703437927,-214.1,0.00020187,2]
[367212939,1750703437937,-3437.1515368,0.000207,2]
[367212940,1750703437946,-300.0,0.00020835,2]
[367212942,1750703437956,-150.0,0.00020836,2]
[367212944,1750703437965,-150.0,0.00020836,2]
[367212946,1750703437975,-150.0,0.00020836,2]
[367212948,1750703437985,-150.0,0.00020836,2]
[367212950,1750703437994,-150.0,0.00020836,2]
[367212952,1750703438003,-150.0,0.00020836,2]
[367212954,1750703438013,-150.0,0.00020836,2]
[367212956,1750703438022,-202.0,0.00020874,3]
[367212958,1750703438032,-469.2450137,0.00021,2]
[367212960,1750703438041,-250.0,0.00021345,2]
[367212962,1750703438050,-157.46,0.0002146,2]
[367212964,1750703438059,-200.0,0.00021558,7]
[367212966,1750703438069,-1000.0,0.0002159,2]
[367212968,1750703438078,-20937.0,0.00021861,2]
[367212970,1750703438087,-152.75,0.0002195,2]
[367212972,1750703438097,-152.75,0.00021961,2]
[367212974,1750703438106,-152.75,0.00021972,2]
[367212976,1750703438115,-151.0,0.0002198,2]
[367212978,1750703438125,-498.92836309,0.0002198,2]
[367212980,1750703438135,-207.4,0.0002198,2]
[367212982,1750703438145,-500.0,0.0002198,2]
[367212984,1750703438154,-500.0,0.0002198,2]
[367212986,1750703438163,-500.0,0.0002198,2]
[367212988,1750703438172,-458.23348358,0.0002198,2]
[367212990,1750703438182,-152.75,0.00021983,2]
[367212992,1750703438191,-150.0,0.00021993,4]
[367212994,1750703438201,-150.0,0.00021993,4]
[367212996,1750703438211,-152.75,0.00021994,2]
[367212998,1750703438220,-3031.47254253,0.00022,2]
[367213000,1750703438229,-152.75,0.00022005,2]
[367213001,1750703438239,-152.75,0.00022016,2]
[367213003,1750703438249,-152.75,0.00022027,2]
[367213005,1750703438258,-152.75,0.00022038,2]
[367213007,1750703438268,-152.75,0.00022049,2]
[367213010,1750703438278,-152.75,0.0002206,2]
[367213011,1750703438288,-202.0,0.00022178,5]
[367213014,1750703438298,-333.17066334,0.00022482,2]
[367213016,1750703438307,-1488.16094619,0.000225,2]
[367213017,1750703438317,-1076.627427,0.00022526,4]
[367213019,1750703438327,-203.0,0.00022571,2]
[367213021,1750703438337,-967.46702375,0.00022583,2]
[367213023,1750703438347,-967.42,0.00022584,2]
[367213025,1750703438356,-168.0,0.00022623,2]
[367213027,1750703438365,-315.46774,0.0002264,2]
[367213029,1750703438375,-420.0,0.00022667,2]
[367213031,1750703438385,-11055.760132,0.0002272,2]
[367213033,1750703438394,-11055.760132,0.00022731,2]
[367213036,1750703438408,-801.89849904,0.00022733,2]
[367213058,1750703438523,-801.89849904,0.00022741,2]
[367213063,1750703438599,-369.72515344,0.00022744,2]
[367213065,1750703438610,-47901.66184085,0.00022748,2]
[367213067,1750703438622,-801.89849904,0.00022763,2]
[367213069,1750703438633,-48479.62405934,0.00022766,2]
[367213071,1750703438643,-200.0,0.00022771,2]
[367213073,1750703438654,-47901.66184085,0.00022774,2]
[367213075,1750703438663,-1416.13316388,0.00022782,2]
[367213077,1750703438673,-191.72250701,0.00022783,2]
[367213079,1750703438683,-161.44944061,0.00022783,2]
[367213081,1750703438694,-1000.0,0.00022783,2]
[367213083,1750703438704,-2500.0,0.00022783,2]
[367213085,1750703438714,-5000.0,0.00022783,2]
[367213087,1750703438723,-151.61860794,0.00022784,2]
[367213089,1750703438732,-1656.4493,0.00022784,2]
[367213091,1750703438742,-500.0,0.00022784,2]
[367213093,1750703438751,-2187.4955,0.00022784,2]
[367213095,1750703438760,-48479.62405934,0.0002279,2]
[367213097,1750703438769,-11256.76188695,0.00022798,2]
[367213099,1750703438778,-801.89849904,0.00022799,2]
[367213101,1750703438787,-48479.62405934,0.0002281,2]
[367213103,1750703438797,-1416.1331638,0.00022811,2]
[367213105,1750703438805,-48479.62405934,0.00022814,2]
[367213107,1750703438814,-203.0,0.0002282,2]
[367213109,1750703438823,-1416.1331638,0.0002284,2]
[367213111,1750703438834,-11055.760132,0.00022851,2]
[367213113,1750703438843,-1934.84,0.0002286,2]
[367213115,1750703438852,-47901.66184085,0.00022861,2]
[367213117,1750703438861,-2000.0,0.00022867,2]
[367213119,1750703438870,-200.0,0.00022867,2]
[367213121,1750703438881,-200.0,0.00022867,2]
[367213123,1750703438890,-200.0,0.00022867,2]
[367213125,1750703438899,-200.0,0.00022867,2]
[367213127,1750703438908,-1416.1331638,0.00022869,2]
[367213129,1750703438917,-500.0,0.00022873,2]
[367213131,1750703438927,-500.0,0.00022873,2]
[367213133,1750703438936,-500.0,0.00022873,2]
[367213134,1750703438945,-211.01529921,0.00022874,2]
[367213136,1750703438955,-47901.66184085,0.00022874,2]
[367213138,1750703438964,-801.89849904,0.00022877,2]
[367213140,1750703438974,-490.0,0.00022881,2]
[367213142,1750703438984,-986.33,0.00022881,2]
[367213144,1750703438993,-552.3,0.00022881,2]
[367213146,1750703439003,-859.72,0.00022881,2]
[367213148,1750703439012,-1058.44,0.00022881,2]
[367213150,1750703439022,-878.84,0.00022881,2]
[367213152,1750703439032,-2010.3,0.00022881,2]
[367213154,1750703439044,-490.0,0.00022881,2]
[367213156,1750703439054,-759.67,0.00022881,2]
[367213158,1750703439063,-826.52,0.00022881,2]
[367213160,1750703439072,-632.52,0.00022881,2]
[367213163,1750703439083,-1071.02,0.00022881,2]
[367213165,1750703439092,-490.0,0.00022881,2]
[367213167,1750703439101,-1066.07,0.00022881,2]
[367213169,1750703439110,-490.0,0.00022881,2]
[367213170,1750703439120,-841.69,0.00022881,2]
[367213173,1750703439131,-889.35,0.00022881,2]
[367213174,1750703439140,-490.0,0.00022881,2]
[367213177,1750703439150,-490.89539274,0.00022881,2]
[367213178,1750703439159,-1022.71,0.00022881,2]
[367213180,1750703439167,-727.45,0.00022881,2]
[367213182,1750703439177,-600.0,0.00022881,2]
[367213184,1750703439187,-490.0,0.00022881,2]
[367213186,1750703439195,-500.27,0.00022881,2]
[367213188,1750703439206,-4760.02,0.00022881,2]
[367213190,1750703439215,-756.93,0.00022881,2]
[367213192,1750703439225,-490.0,0.00022881,2]
[367213194,1750703439234,-939.91,0.00022881,2]